Cogmind - Beta 13 @@@ ROGUE MODE // 2024.07.22 @ 16:54:49 Player: Tuwiuu Result: Destroyed by X-62 Marksman with Pulse Rifle Performance ------------- Evolutions (1) 500 Regions Visited (6) 1200 Robots Destroyed (37) 185 Value Destroyed (899) 899 Prototype IDs (2) 40 Alien Tech Used (0) 0 Bonus (835) 835 TOTAL SCORE: 3659 Bonus ------- Follower Combat Kills 235 Met Imprinter 300 Was Imprinted 300 Cogmind --------- Core Integrity 0/400 Matter 290/300 Energy 69/100 System Corruption 3% Temperature Hot (224) Movement Core (100) Ox1 Location -6/Proximity Caves Parts ------- > --- POWER (1) -------- (None) > --- PROPULSION (2) --- (None) > --- UTILITY (4) ------ Signal Interpreter Salvage Targeting Computer > --- WEAPON (2) ------- Heavy Beamcaster > --- INVENTORY (5) ---- Makeshift Terrain Scan Processor Hacking Drone Bay (1/1) Makeshift Sword CR-A16's Pointy Stick Peak State ------------ > --- POWER ------------ Improved Deuterium Engine > --- PROPULSION ------- Flight Unit Makeshift Flight Unit > --- UTILITY ---------- Signal Interpreter Salvage Targeting Computer System Restoration Module Hacking Drone Bay > --- WEAPON ----------- Mining Laser CR-A16's Pointy Stick > --- INVENTORY -------- Flight Unit Makeshift Terrain Scan Processor Heavy Beamcaster Mini Grenade Launcher Makeshift Sword [Rating: 31] Favorites ----------- Power Light Nuclear Core Engine Makeshift Power Source Power Core Light Nuclear Core Propulsion Flight Unit Treads Light Treads Leg Aluminum Leg Flight Unit Flight Unit Utility Signal Interpreter Device Improved Heat Sink Processor Signal Interpreter Weapon Spread Laser Energy Gun Spread Laser Ballistic Gun Assault Rifle Ballistic Cannon Light Cannon Launcher Mini Grenade Launcher Special Weapon Mining Laser Impact Weapon Heavy Hammer Piercing Weapon CR-A16's Pointy Stick Special Melee Weapon Datajack Build | -11 -10 -10 -9 -9 -7 -6 ------- Run | Yrd Mat Min Mat Min Zio Pro Slots Evolved 2 | . . . 2 . . . Power . | . . . . . . . Propulsion . | . . . . . . . Utility 2 | . . . 2 . . . Weapon . | . . . . . . . Parts Attached 70 | 4 28 14 6 6 7 5 Power 10 | 1 3 4 . . 1 1 Engine 6 | 1 1 3 . . 1 . Core 4 | . 2 1 . . . 1 Reactor . | . . . . . . . Propulsion 22 | 2 7 6 2 2 1 2 Treads 2 | . . 2 . . . . Leg 9 | 2 7 . . . . . Wheel . | . . . . . . . Hover . | . . . . . . . Flight 11 | . . 4 2 2 1 2 Utility 8 | . 4 . . 2 2 . Device 5 | . 3 . . . 2 . Storage . | . . . . . . . Processor 3 | . 1 . . 2 . . Hackware . | . . . . . . . Protection . | . . . . . . . Artifact . | . . . . . . . Weapon 30 | 1 14 4 4 2 3 2 Energy Gun 11 | . 8 1 . . 1 1 Energy Cannon . | . . . . . . . Ballistic Gun 6 | 1 2 1 . 2 . . Ballistic Cannon 1 | . 1 . . . . . Launcher 3 | . . . 2 . . 1 Special Weapon 4 | . 1 1 1 . 1 . Impact Weapon 2 | . 2 . . . . . Slashing Weapon . | . . . . . . . Piercing Weapon 1 | . . . . . 1 . Special Melee Weapon 2 | . . 1 1 . . . Unidentified Prototypes 2 | . . . 1 . 1 . Parts Lost 11 | . 1 . 2 2 . 6 Power 3 | . 1 . . 1 . 1 Propulsion 4 | . . . . 1 . 3 Utility 2 | . . . 1 . . 1 Weapon 2 | . . . 1 . . 1 Highest Loss Streak 4 | . 1 . 1 2 . 4 To Critical Strikes . | . . . . . . . Average Slot Usage (%) 90 | . 96 98 73 68 85 86 Engine 2 | . 1 7 11 2 . . Core 5 | . 11 6 . . . 9 Treads 2 | . . 9 . . . . Leg 8 | . 28 3 . . . . Flight 14 | . . 14 22 21 22 18 Device 12 | . 13 14 7 . 14 16 Processor 19 | . 13 14 11 22 27 22 Energy Gun 8 | . 19 9 . . 3 . Ballistic Gun 3 | . 4 4 . 6 1 . Special Weapon 5 | . . 5 3 . 10 8 Piercing Weapon 2 | . . . . . 6 10 Special Melee Weapon 2 | . . 6 5 7 . . Naked Turns . | . . . . . . . Heaviest Build 12 | 5 12 12 7 6 6 11 Greatest Support 40 | 20 20 40 8 8 12 12 Greatest Overweight (x) 3 | . . 2 . . . 3 Average Overweight (x) . | . . . . . . . Largest Inventory Capacity 5 | 5 5 5 5 5 5 5 Average Capacity 5 | 5 5 5 5 5 5 5 Most Carried 5 | 4 5 5 5 5 5 5 Average Carried 4 | 2 4 4 4 3 4 4 Final Capacity 5 | 5 5 5 5 5 5 5 Final Carried 5 | 4 5 5 4 5 5 4 Class Distribution -------------------- 46% | Mutant 45% | Scavenger-Mutant 6% | Derelict-Mutant Dominant Class ---------------- Scavenger-Mutant | -10/Materials Scavenger-Mutant | -10/Mines Scavenger-Mutant | -9/Materials Mutant | -9/Mines Mutant | -7/Zion Mutant | -6/Proximity Caves Resources | -11 -10 -10 -9 -9 -7 -6 ----------- Run | Yrd Mat Min Mat Min Zio Pro Matter Collected 1133 | 255 309 174 5 30 106 254 Remotely . | . . . . . . . Salvage Created 967 | . 476 241 114 23 . 113 Parts 68 | . 26 18 11 7 . 6 Haulers Intercepted 1 | . . . 1 . . . Recyclers Shooed 2 | . . 2 . . . . Parts Field Recycled . | . . . . . . . Retrieved Matter . | . . . . . . . Parts Self-Destructed 15 | . . . . . . 15 Prevented . | . . . . . . . Kills | -11 -10 -10 -9 -9 -7 -6 ------- Run | Yrd Mat Min Mat Min Zio Pro Combat Hostiles Destroyed 26 | . 9 4 5 6 . 2 Melee 1 | . . . . . . 1 Guns 13 | . 8 4 . . . 1 AOE 11 | . . . 5 6 . . Classes Destroyed 11 | . 4 2 3 . . 2 Worker 3 | . 1 . 2 . . . Hauler 1 | . . . 1 . . . Recycler 3 | . 1 2 . . . . Operator 1 | . . . 1 . . . Watcher 3 | . 2 . 1 . . . Swarmer 11 | . . 2 3 6 . . Grunt 10 | . 9 . 1 . . . Duelist 1 | . . . 1 . . . Sentry 2 | . . 2 . . . . Hunter 1 | . . . . . . 1 Programmer 1 | . . . . . . 1 Best Kill Streak 8 | . 5 6 8 3 . 1 Combat Bots Only 5 | . 2 4 5 3 . 1 Max Kills in Single Turn 3 | . 1 1 3 2 . 1 Gunslinging . | . . . . . . . Exploded 3 | . . . 3 2 . . Melee 1 | . . . . . . 1 Uniques/NPCs Destroyed . | . . . . . . . Combat | -11 -10 -10 -9 -9 -7 -6 -------- Run | Yrd Mat Min Mat Min Zio Pro Hostile Shots Fired 161 | 9 51 26 15 11 . 49 Missed 52 | 3 12 10 9 3 . 15 Damage Taken 1646 | 65 495 175 89 161 . 661 Core 566 | 33 98 21 18 49 . 347 Absorbed by Shields . | . . . . . . . Regen/Repaired (Parts) 12 | . 12 . . . . . Core Remaining (%) 62 | 86 . 39 . . . . Volleys Fired 83 | 5 28 19 9 5 7 10 Largest 2 | 1 2 2 2 1 1 1 Hottest 130 | 20 130 130 60 30 100 100 Shots Fired 122 | 5 55 28 13 5 7 9 Gun 85 | 5 54 18 . . . 8 Cannon . | . . . . . . . Launcher 18 | . . . 13 5 . . Special 19 | . 1 10 . . 7 1 Kinetic 31 | 5 26 . . . . . Thermal 73 | . 29 28 . . 7 9 Explosive 18 | . . . 13 5 . . Electromagnetic . | . . . . . . . Robot Hit Streak 17 | 2 8 17 3 2 . 6 Robot Miss Streak 5 | 1 5 3 1 1 . 2 Penetration Max . | . . . . . . . Secondary Targets . | . . . . . . . Shots Hit Robots 87 | 3 45 17 7 8 . 7 Core Hits 81 | 1 40 24 10 4 . 2 Critical Kills . | . . . . . . . Critical Parts Destroyed 1 | . 1 . . . . . Critical Strikes 1 | . 1 . . . . . Smash 1 | . 1 . . . . . Melee Attacks 16 | . 6 2 . 5 . 3 Impact 6 | . 6 . . . . . Slashing . | . . . . . . . Piercing 3 | . . . . . . 3 Sneak Attacks 7 | . 1 1 . 5 . . Combat Hostiles 1 | . . 1 . . . . Follow-up Attacks . | . . . . . . . Damage Inflicted 2301 | 37 753 209 721 357 . 224 Guns 953 | 37 539 209 . . . 168 Cannons . | . . . . . . . Explosions 1078 | . . . 721 357 . . Melee 270 | . 214 . . . . 56 Ramming . | . . . . . . . Kinetic 214 | 37 177 . . . . . Thermal 739 | . 362 209 . . . 168 Explosive 1078 | . . . 721 357 . . Electromagnetic . | . . . . . . . Impact 214 | . 214 . . . . . Slashing . | . . . . . . . Piercing 56 | . . . . . . 56 Highest Corruption 3 | . . . . . . 3 Average Corruption 1 | . . . . . . 1 Corruption Purged . | . . . . . . . Corruption Blocked . | . . . . . . . Effects 1 | . . . . . . 1 Weapon Failures 1 | . . . . . . 1 Overload Shots . | . . . . . . . Overflow Damage 165 | . 18 . 70 77 . . Projectiles . | . . . . . . . Explosions 147 | . . . 70 77 . . Melee 18 | . 18 . . . . . Knockbacks 1 | . 1 . . . . . Impact 1 | . 1 . . . . . Kinetic . | . . . . . . . Secondary . | . . . . . . . Self-Inflicted Damage 134 | . . . 39 95 . . Shots 3 | . . . 1 2 . . Rammed . | . . . . . . . Targets Rammed . | . . . . . . . Kicked . | . . . . . . . Crushed . | . . . . . . . Highest Temperature 221 | . 156 221 12 . 1 215 Average Temperature 66 | . 39 123 4 . 1 90 Received Heat Transfer 465 | 36 339 51 . . . 39 Siege Activations . | . . . . . . . Robots Corrupted . | . . . . . . . Combat Hostiles . | . . . . . . . Parts Fried 3 | . 3 . . . . . Impact Corruptions 1 | . 1 . . . . . Robots Melted . | . . . . . . . Combat Hostiles . | . . . . . . . Parts Melted 6 | . . . . . . 6 Heat Transferred 992 | . 515 255 . . . 222 Parts Sabotaged . | . . . . . . . Parts Stolen . | . . . . . . . Parts Stripped . | . . . . . . . Power Chain Reactions . | . . . . . . . Alert | -11 -10 -10 -9 -9 -7 -6 ------- Run | Yrd Mat Min Mat Min Zio Pro Peak Influence 522 | . 179 181 522 375 . . Initial 203 | . . 61 55 203 . . Average 130 | . 107 119 217 302 . . Maximum Alert Level 2 | . . . 2 1 . . Low Security (%) 88 | 100 100 100 49 . . . Level 1 10 | . . . 36 99 . . Level 2 . | . . . 14 . . . Level 3 . | . . . . . . . Level 4 . | . . . . . . . Level 5 . | . . . . . . . High Security . | . . . . . . . Max Security . | . . . . . . . Squads Dispatched 3 | . 2 . 1 . . . Investigation 2 | . 1 . 1 . . . Extermination . | . . . . . . . Reinforcement 1 | . 1 . . . . . Assault . | . . . . . . . Garrison . | . . . . . . . Intercept . | . . . . . . . Searches Triggered . | . . . . . . . Construction Impeded . | . . . . . . . Haulers Reinforced . | . . . . . . . Active Scanning Responses . | . . . . . . . Cargo Convoy Interrupts . | . . . . . . . Stealth | -11 -10 -10 -9 -9 -7 -6 --------- Run | Yrd Mat Min Mat Min Zio Pro Distress Signals 5 | . 3 . 2 . . . Communications Jammed . | . . . . . . . Distress Signals . | . . . . . . . Times Spotted 62 | 1 18 10 15 6 . 12 Peak Tracking Total 5 | 1 4 5 4 3 . 5 Tactical Retreats 3 | . 1 1 . . . 1 Traps | -11 -10 -10 -9 -9 -7 -6 ------- Run | Yrd Mat Min Mat Min Zio Pro Traps Triggered 3 | . 3 . . . . . Indirectly . | . . . . . . . Trap Hack Attempts . | . . . . . . . Triggered . | . . . . . . . Disarmed . | . . . . . . . Reprogrammed . | . . . . . . . Reused . | . . . . . . . Traps Extracted . | . . . . . . . Installed . | . . . . . . . Triggered . | . . . . . . . Machines | -11 -10 -10 -9 -9 -7 -6 ---------- Run | Yrd Mat Min Mat Min Zio Pro Machines Disabled 6 | . 1 . 5 . . . Max in Single Turn 2 | . 1 . 2 . . . Machines Repaired . | . . . . . . . Machines Dismantled . | . . . . . . . Machines Sabotaged . | . . . . . . . Overloaded Fab Kills . | . . . . . . . Hacking | -11 -10 -10 -9 -9 -7 -6 --------- Run | Yrd Mat Min Mat Min Zio Pro Machines Accessed 10 | . 5 1 4 . . . Terminals 7 | . 3 1 3 . . . Fabricators . | . . . . . . . Repair Stations 2 | . 1 . 1 . . . Recycling Units 1 | . 1 . . . . . Scanalyzers . | . . . . . . . Garrison Access . | . . . . . . . Total Hacks 22 | . 8 3 11 . . . Successful 13 | . 6 1 6 . . . Failed 8 | . 1 2 5 . . . Catastrophic 1 | . . . 1 . . . Database Lockouts 1 | . 1 . . . . . Manual 30 | . 10 . 7 . 13 . Terminals 17 | . 5 3 9 . . . Fabricators . | . . . . . . . Repair Stations 4 | . 2 . 2 . . . Recycling Units 1 | . 1 . . . . . Scanalyzers . | . . . . . . . Garrison Access . | . . . . . . . Terminal Hacks 9 | . 3 1 5 . . . Record 9 | . 3 1 5 . . . Fabricator Hacks . | . . . . . . . Repair Station Hacks 3 | . 2 . 1 . . . Scan Component 2 | . 1 . 1 . . . Repair 1 | . 1 . . . . . Recycling Unit Hacks 1 | . 1 . . . . . Report Inventory 1 | . 1 . . . . . Scanalyzer . | . . . . . . . Garrison Access Hacks . | . . . . . . . Unauthorized Hacks . | . . . . . . . Terminals . | . . . . . . . Fabricators . | . . . . . . . Repair Stations . | . . . . . . . Recycling Units . | . . . . . . . Scanalyzers . | . . . . . . . Garrison Access . | . . . . . . . Data Cores Recovered 2 | . . . 2 . . . Used 1 | . . . 1 . . . Hacking Detections 9 | . 5 1 3 . . . Full Trace Events . | . . . . . . . Feedback Events . | . . . . . . . Feedback Blocked . | . . . . . . . Robot Schematics Acquired 3 | . . . . . 3 . Robots Built . | . . . . . . . Authchips . | . . . . . . . Time . | . . . . . . . Total Robot Build Rating . | . . . . . . . Part Schematics Acquired 16 | . . . . . 16 . Parts Built . | . . . . . . . Authchips . | . . . . . . . Time . | . . . . . . . Total Part Build Rating . | . . . . . . . Parts Repaired 1 | . 1 . . . . . Time 26 | . 26 . . . . . Parts Recycled . | . . . . . . . Recycled Matter . | . . . . . . . Retrieved Matter . | . . . . . . . Retrieved Components . | . . . . . . . Parts Scanalyzed . | . . . . . . . Part Schematics Acquired . | . . . . . . . Parts Damaged . | . . . . . . . Bothacking | -11 -10 -10 -9 -9 -7 -6 ------------ Run | Yrd Mat Min Mat Min Zio Pro Used RIF Installer . | . . . . . . . Robots Hacked 3 | . . 1 . 2 . . Non-combat 2 | . . . . 2 . . Combat 1 | . . 1 . . . . Robot Hacks Applied 4 | . . 1 . 3 . . parse_system 2 | . . 1 . 1 . . no_distress 2 | . . . . 2 . . Relay Couplers Released . | . . . . . . . Fabnet Peak Effective % . | . . . . . . . Robots Rewired . | . . . . . . . Allies Hacked 1 | . . . . . . 1 Hacks Repelled . | . . . . . . . Allies | -11 -10 -10 -9 -9 -7 -6 -------- Run | Yrd Mat Min Mat Min Zio Pro Total Allies 10 | . . 5 . 1 4 . Largest Group 5 | . . 4 4 1 5 5 Highest-Rated Group 187 | . . 71 71 31 187 187 Highest-Rated Ally 41 | . . 31 31 31 41 41 Total Orders . | . . . . . . . Ally Attacks 57 | . . 15 14 . . 28 Total Damage 1106 | . . 255 123 . . 728 Kills 16 | . . 5 4 . . 7 Allies Corrupted 1 | . . . . . . 1 Allies Melted . | . . . . . . . Intel | -11 -10 -10 -9 -9 -7 -6 ------- Run | Yrd Mat Min Mat Min Zio Pro Robot Analysis Total . | . . . . . . . Derelict Logs Recovered 3 | . . 2 . 1 . . Drone Launches . | . . . . . . . Drone Recoveries . | . . . . . . . Exploration | -11 -10 -10 -9 -9 -7 -6 ------------- Run | Yrd Mat Min Mat Min Zio Pro Turns Passed 2942 | 87 742 693 105 154 887 274 Spaces Moved 3684 | 65 409 779 157 264 1521 489 Core 19 | 17 . . . . . 2 Treads 138 | . . 138 . . . . Legs 503 | 48 409 46 . . . . Wheels . | . . . . . . . Hover . | . . . . . . . Flight 3024 | . . 595 157 264 1521 487 Fastest Speed 32 | 50 120 37 37 37 37 32 Average Speed 56 | 101 120 64 37 37 42 42 Slowest Speed 200 | 120 120 200 37 40 44 200 Overloaded Moves . | . . . . . . . Propulsion Burnouts . | . . . . . . . Robots Hopped 1 | . . . 1 . . . Cave-ins Triggered . | . . . . . . . Exploration Rate (%) 55 | 7 65 97 34 52 91 41 Regions Visited 6 Branch Regions 4 Pre-discovered Areas 8 | . . 3 . 1 4 . Known Exits Taken 5 | . 1 1 1 1 1 . Unknown Exits Taken 1 | 1 . . . . . . Scrap Searched 7 | . . 1 . 1 4 1 Spaces Dug 8 | . . 8 . . . . Terrain Destroyed 151 | . . 8 89 54 . . Melee . | . . . . . . . Projectile 8 | . . 8 . . . . AOE 143 | . . . 89 54 . . Terrain Rammed . | . . . . . . . Walls Destroyed . | . . . . . . . Machines Disabled . | . . . . . . . Actions | -11 -10 -10 -9 -9 -7 -6 --------- Run | Yrd Mat Min Mat Min Zio Pro Total 4376 | 79 595 925 189 309 1740 539 Wait 434 | 2 93 87 10 26 190 26 Move 3676 | 64 408 778 154 263 1520 489 Hop 1 | . . . 1 . . . Pick Up 36 | 4 12 7 4 2 6 1 Fast Attach 30 | 4 11 7 . 3 4 1 Attach 8 | . 2 1 2 1 . 2 Detach 4 | . 1 2 . . . 1 Swap 33 | . 15 6 5 2 3 2 Drop 54 | . 19 16 4 2 10 3 Fire 83 | 5 28 19 9 5 7 10 Melee 16 | . 6 2 . 5 . 3 Ram . | . . . . . . . Kick . | . . . . . . . Crush . | . . . . . . . Escape Stasis . | . . . . . . . Rewire 1 | . . . . . . 1 Trap . | . . . . . . . Miscellaneous . | . . . . . . . Route ------- -11/Scrapyard -10/Materials (discovered 3 exits: *Mat x2 / *Min) -10/Mines (discovered 2 exits: *Mat x2) -9/Materials -9/Mines (discovered 2 exits: *Mat / *Zio) -7/Zion -6/Proximity Caves History --------- Turn | Location | Event 2 | -11/Scrapyard | Met Revision 17 65 | -11/Scrapyard | Discovered new exit (range 8) 88 | -11/Scrapyard | Entered Materials 213 | -10/Materials | Discovered new exit (range 16) 257 | -10/Materials | Repaired ECM Suite 377 | -10/Materials | Central database locked down 378 | -10/Materials | Discovered new exit (range 9) 388 | -10/Materials | Core integrity fell below 50% 406 | -10/Materials | Identified exit to Materials 496 | -10/Materials | Build established: Scavenger-Mutant 805 | -10/Materials | Discovered new exit (range 14) 829 | -10/Materials | Identified exit to Mines 830 | -10/Materials | Entered Mines 845 | -10/Mines | Discovered exit to Materials (range 9) 861 | -10/Mines | Met a Derelict bent on vengeance 1119 | -10/Mines | Learned location of Zion (-7) 1434 | -10/Mines | Discovered exit to Materials (range 8) 1435 | -10/Mines | Learned location of Storage (-7) 1443 | -10/Mines | Assisted by bots powering up and referring to "LRC-V3" 1523 | -10/Mines | Entered Materials 1523 | -9/Materials | Accompanied by 4 allies 1523 | -9/Materials | Evolved 2 slots: Utility x2 1528 | -9/Materials | Led the pair of lost Derelicts to an unsafe place 1613 | -9/Materials | Discovered new exit (range 14) 1621 | -9/Materials | Identified exit to Mines 1628 | -9/Materials | Entered Mines 1729 | -9/Mines | Escorted by a lone wolf Derelict 1740 | -9/Mines | Discovered new exit (range 11) 1744 | -9/Mines | Identified exit to Materials 1755 | -9/Mines | A Derelict revealed a hidden shortcut to a safe place 1757 | -9/Mines | Identified exit to Zion 1782 | -9/Mines | Entered Zion 1782 | -7/Zion | Accompanied by 1 ally 1910 | -7/Zion | Learned location of Data Miner (-6) 1994 | -7/Zion | Given the Hacking Drone Bay 1994 | -7/Zion | Found Prototype Device 1994 | -7/Zion | Identified Hacking Drone Bay 2045 | -7/Zion | Imprinted 2047 | -7/Zion | Declared Zion's savior 2151 | -7/Zion | Found CR-A16's Pointy Stick 2412 | -7/Zion | Discovered new exit (range 10) 2416 | -7/Zion | Identified exit to Proximity Caves 2439 | -7/Zion | Learned location of Warlord (-5) 2471 | -7/Zion | Build established: Mutant 2669 | -7/Zion | Entered Proximity Caves 2669 | -6/Proximity Caves | Accompanied by 5 allies 2704 | -6/Proximity Caves | Unaware initiated a cargo recovery operation 2880 | -6/Proximity Caves | Core integrity fell below 50% 2893 | -6/Proximity Caves | Spotted B-75 Beast 2911 | -6/Proximity Caves | Lost 4 allies 2931 | -6/Proximity Caves | Core integrity fell below 20% 2943 | -6/Proximity Caves | Destroyed by X-62 Marksman with Pulse Rifle Last Messages --------------- 02880_ C6-BOC(M) destroyed. 02882_ Gauss Rifle fries itself beyond repair. 02882_ Slug penetrates Wall. 02882_ M-28 Smith destroyed. 02885_ Penetrated by Slug. 02888_ Wheel fries itself beyond repair. 02897_ Slug penetrates Wall. 02906_ VTOL Module destroyed. 02926_ Mni. Grenade Launcher destroyed. 02932_ System corrupted: Hvy. Beamcaster failed to cycle. 02938_ Destroyed Shock Rifle. 02939_ P-60 Hacker heat spikes uncontrollably. 02939_ Lgt. Nuclear Core destroyed. 02940_ Penetrated by Slug. 02940_ Remote Datajack melted. 02940_ Gravmag System melted. 02940_ Imp. Heat Sink melted. 02940_ Target Analyzer melted. 02940_ Mic. Nuclear Core melted. 02940_ P-60 Hacker destroyed. Map ----- +----------------------------------------------------+ | ######??# #????## ## #??????????? | | #######?# #????# ### #### #??????????? | | ### #???# ##?# ##??## ##?????????? | | #?# ##??# ## #????# ##????????? | | ## ####???#### #????# #????????? | | """ ####### #??????????# ###### ##???????? | | """ #?????## #???????????# # #???????? | | """ #??????##????######### #### ### #???????? | | """ #???????????## #?# ### #???????? | | =% #?####?????## #### ###???????? | | """ #?# ####### #### #?????????? | | """ ### ### ##?# #?????????? | | """ = ##?## ##??## ????????? | | """ ##???###????## ??????? | | ##### #????????????###### ????? | | #???##### ##??#####??????????# #??? | | ###?????# #?## ##??###????? #?? | | ### ##??### ### ### ##????## #? | | ??# #### ### ###???? # | | ?## ## #?## ?????? # | | ?# ### #?## #????????? ## | | ?### ##?## #?# #?????????? #? | | ???# ##???####?# x ##?????????? ##? | | ???# #?????????# ####%p ###????????????###?? | | ???# ########### #??# ##??????????????????? | | ???## #??#@ #???????????????????? | | ????## #######??# #??????????????????? | | ?????### ##????????# #??????????????????? | | ???????## ##?????????## ##??????????????????? | | ????????######????????????# ##???????????????????? | | ???????????????????????????##????????????????????? | | ?????????????????????????????????????????????????? | | ?????????????????????????????????????????????????? | | ?????????????????????????????????????????????????? | | ?????????????????????????????????????????????????? | | ?????????????????????????????????????????????????? | | ?????????????????????????????????????????????????? | | ?????????????????????????????????????????????????? | | ?????????????????????????????????????????????????? | | ?????????????????????????????????????????????????? | | ?????????????????????????????????????????????????? | | ?????????????????????????????????????????????????? | | ?????????????????????????????????????????????????? | | ?????????????????????????????????????????????????? | | ?????????????????????????????????????????????????? | | ?????????????????????????????????????????????????? | | | | | | | | | +----------------------------------------------------+ Best States ------------- Heat Dissipation 42 Energy Generation 16 Energy Capacity 290 Matter Stores 300 Matter Capacity 300 Sight Range 16 Terrain Scan Density 10 ECM Strength 1 Evasion (%) 63 Targeting Accuracy 5 Recoil Reduction 2 Salvage Targeting 1 Item Schematics ----------------- HERF Cannon | -7/Zion | Archive Magnetic Acceleration Cannon | -7/Zion | Archive Adv. Terrain Scan Processor | -7/Zion | Archive Imp. Thermal Shield | -7/Zion | Archive Mak. Leg | -7/Zion | Archive Adv. Terrain Scanner | -7/Zion | Archive Mak. System Shield | -7/Zion | Archive Stasis Canceller | -7/Zion | Archive Gatling Laser | -7/Zion | Archive Imp. Core Shielding | -7/Zion | Archive Hvy. Riot Gun | -7/Zion | Archive Mni. Drone Bay | -7/Zion | Archive Imp. Target Analyzer | -7/Zion | Archive Imp. Salvage Targeting Computer | -7/Zion | Archive Powered Hammer | -7/Zion | Archive Imp. Particle Charger | -7/Zion | Archive Robot Schematics ------------------ X-62 Marksman | -7/Zion | Archive B-48 Gladiator | -7/Zion | Archive L-41 Fighter | -7/Zion | Archive Fabricated ------------ Nothing Alien Tech Used ----------------- None Achievements -------------- Dynamic Key Robot Respite The More The Merrier The One Tourist Challenges ------------ None Game ------ Seed BladeHeatArachnoskeleton Manual? 0 Play Time 01:51:06 Cumulative 5.0 hours Start 2024.07.22 @ 12:39:44 End 2024.07.22 @ 16:54:49 Sessions 7 Manual Loads 0 Difficulty Rogue Special Mode None Game No. 2 Rogue 2 Adventurer 0 Explorer 0 Win Type - Total 0 Types 0/0/0/0/0/0/0/0/0 Lore% 7 Gallery% 7 Achievement% 8 Wizard Run 0 Options --------- Layout 0 ASCII 0 Keyboard 0 Movement Mouse Keybinds 0 Fullscreen 2 Font 36/Smallcaps Map View 76x50 Zoom Use 0% Tactical HUD 1 Map Filters NONE Filters NONE Steam 1 RUN: a417aaa0-34ce-481c-89a0-4d0a2569b030